Cogmind - Beta 9.6 --- EXPLORER MODE // 2020.05.31 @ 17:26:04 Player: greve Result: Self-destructed Performance ------------- Evolutions (2) 1000 Regions Visited (6) 1200 Robots Destroyed (26) 130 Value Destroyed (869) 869 Prototype IDs (3) 60 Alien Tech Used (0) 0 Bonus (199) 199 TOTAL SCORE: 3458 Bonus ------- Follower Combat Kills 33 Entered Garrisons 200 Friendly Fire -34 Cogmind --------- Core Integrity 452/550 Matter 300/300 Energy 580/580 System Corruption 0% Temperature Cool (0) Movement Treading (157) Location -8/Garrison Parts ------- > --- POWER (2) -------- Heavy Ion Engine > --- PROPULSION (2) --- Armored Treads Advanced Treads > --- UTILITY (4) ------ Compact Battery Targeting Computer Targeting Computer > --- WEAPON (4) ------- (None) > --- INVENTORY (4) ---- Light Nuclear Core Advanced Visual Processing Unit Peak State ------------ > --- POWER ------------ Nuclear Core Light Nuclear Core > --- PROPULSION ------- Armored Treads Advanced Treads > --- UTILITY ---------- Compact Battery Targeting Computer Targeting Computer > --- WEAPON ----------- Shock Rifle Electrolaser Gauss Rifle > --- INVENTORY -------- (None) [Rating: 27] Favorites ----------- Power Light Ion Engine Engine Light Ion Engine Power Core Nuclear Core Propulsion Aluminum Leg Treads Armored Treads Leg Aluminum Leg Utility Targeting Computer Storage Compact Battery Processor Targeting Computer Weapon Electrolaser Energy Gun Electrolaser Ballistic Gun Light Assault Rifle Build | -11 -10 -10 -10 -9 -8 -8 ------- Run | Scr Mat Min Exi Min Mat Gar Slots Evolved 5 | . 1 . . . 4 . Power 1 | . 1 . . . . . Propulsion . | . . . . . . . Utility 2 | . . . . . 2 . Weapon 2 | . . . . . 2 . Parts Attached 17 | 6 . 3 1 1 6 . Power 5 | 1 . 1 . . 3 . Engine 2 | 1 . . . . 1 . Core 3 | . . 1 . . 2 . Reactor . | . . . . . . . Propulsion 4 | 2 . 1 . . 1 . Treads 2 | . . 1 . . 1 . Leg 2 | 2 . . . . . . Wheel . | . . . . . . . Hover . | . . . . . . . Flight . | . . . . . . . Utility 3 | 2 . . . . 1 . Device . | . . . . . . . Storage 1 | . . . . . 1 . Processor 2 | 2 . . . . . . Hackware . | . . . . . . . Protection . | . . . . . . . Artifact . | . . . . . . . Weapon 5 | 1 . 1 1 1 1 . Energy Gun 3 | . . 1 1 . 1 . Energy Cannon . | . . . . . . . Ballistic Gun 2 | 1 . . . 1 . . Ballistic Cannon . | . . . . . . . Launcher . | . . . . . . . Special Weapon . | . . . . . . . Impact Weapon . | . . . . . . . Slashing Weapon . | . . . . . . . Piercing Weapon . | . . . . . . . Special Melee Weapon . | . . . . . . . Unidentified Prototypes 1 | . . . . . 1 . Parts Lost 2 | . . . . . 2 . Power 1 | . . . . . 1 . Propulsion . | . . . . . . . Utility . | . . . . . . . Weapon 1 | . . . . . 1 . Highest Loss Streak 2 | . . . . . 2 . Average Slot Usage (%) 87 | . 75 77 93 100 69 50 Engine 11 | . 12 12 12 12 6 8 Core 9 | . . 2 12 12 9 . Treads 11 | . . 3 12 12 15 16 Leg 11 | . 25 21 12 12 . . Storage 1 | . . . . . 7 8 Processor 23 | . 25 25 25 25 16 16 Energy Gun 14 | . . 2 18 18 8 . Ballistic Gun 2 | . 12 9 . 5 2 . Naked Turns . | . . . . . . . Heaviest Build 23 | 4 4 13 16 17 23 9 Greatest Support 42 | 20 20 20 20 20 42 42 Greatest Overweight (x) . | . . . . . . . Average Overweight (x) . | . . . . . . . Largest Inventory Capacity 4 | 4 4 4 4 4 4 4 Average Capacity 4 | 4 4 4 4 4 4 4 Most Carried 4 | 4 . 3 2 2 4 2 Average Carried 1 | . . . 1 1 1 2 Final Capacity 4 | 4 4 4 4 4 4 4 Final Carried 2 | . . 2 1 1 2 2 Class Distribution -------------------- 98% | Hacker-Mutant Dominant Class ---------------- Hacker-Mutant | -10/Materials Hacker-Mutant | -10/Mines Hacker-Mutant | -10/Exiles Hacker-Mutant | -9/Mines Hacker-Mutant | -8/Materials Hacker-Mutant | -8/Garrison Resources | -11 -10 -10 -10 -9 -8 -8 ----------- Run | Scr Mat Min Exi Min Mat Gar Matter Collected 463 | 216 . 87 10 26 124 . Remotely . | . . . . . . . Salvage Created 1230 | . . 129 214 40 800 47 Parts 56 | . . 11 8 . 34 3 Haulers Intercepted . | . . . . . . . Recyclers Shooed . | . . . . . . . Parts Field Recycled . | . . . . . . . Retrieved Matter . | . . . . . . . Parts Self-Destructed . | . . . . . . . Prevented . | . . . . . . . Kills | -11 -10 -10 -10 -9 -8 -8 ------- Run | Scr Mat Min Exi Min Mat Gar Combat Hostiles Destroyed 23 | . . 6 . 3 13 1 Melee 2 | . . . . . 1 1 Guns 17 | . . 6 . 3 8 . AOE 2 | . . . . . 2 . Classes Destroyed 9 | . . 2 . 2 5 . Builder 1 | . . . . . 1 . Watcher 2 | . . . . . 2 . Swarmer 4 | . . 4 . . . . Grunt 12 | . . 2 . . 9 1 Brawler 1 | . . . . . 1 . Duelist 1 | . . . . . 1 . Sentry 2 | . . . . . 2 . Demolisher 1 | . . . . 1 . . Assembled 2 | . . . . 2 . . Best Kill Streak 3 | . . 2 . 2 3 1 Combat Bots Only 2 | . . 2 . 2 2 1 Max Kills in Single Turn 2 | . . 1 . 1 2 1 Gunslinging . | . . . . . . . Exploded 1 | . . . . . 1 . Melee 1 | . . . . . 1 1 Uniques/NPCs Destroyed . | . . . . . . . Combat | -11 -10 -10 -10 -9 -8 -8 -------- Run | Scr Mat Min Exi Min Mat Gar Damage Taken 1058 | . . 134 . 312 517 95 Core 169 | . . 58 . 13 78 20 Absorbed by Shields . | . . . . . . . Core Remaining (%) 85 | 100 . . . 71 . . Volleys Fired 115 | . . 15 36 16 48 . Largest 3 | . . 1 2 2 3 . Hottest 141 | . . 63 126 91 141 . Shots Fired 150 | . . 15 44 20 71 . Gun 150 | . . 15 44 20 71 . Cannon . | . . . . . . . Launcher . | . . . . . . . Special . | . . . . . . . Kinetic 33 | . . 13 . 4 16 . Thermal 70 | . . 2 44 16 8 . Explosive . | . . . . . . . Electromagnetic 47 | . . . . . 47 . Robot Hit Streak 58 | . . 6 20 23 58 . Robot Miss Streak 1 | . . 1 1 1 1 . Penetration Max . | . . . . . . . Secondary Targets . | . . . . . . . Shots Hit Robots 126 | . . 12 30 18 66 . Core Hits 50 | . . 7 10 6 26 1 Critical Hits 1 | . . . . . 1 . Critical Kills . | . . . . . . . Critical Parts Destroyed 1 | . . . . . 1 . Melee Attacks . | . . . . . . . Impact . | . . . . . . . Slashing . | . . . . . . . Piercing . | . . . . . . . Sneak Attacks . | . . . . . . . Combat Hostiles . | . . . . . . . Follow-up Attacks . | . . . . . . . Damage Inflicted 2254 | . . 121 504 283 1344 2 Guns 2143 | . . 121 504 283 1235 . Cannons . | . . . . . . . Explosions 101 | . . . . . 101 . Melee . | . . . . . . . Ramming 10 | . . . . . 8 2 Kinetic 429 | . . 88 . 68 273 . Thermal 972 | . . 33 504 215 220 . Explosive . | . . . . . . . Electromagnetic 843 | . . . . . 843 . Impact . | . . . . . . . Slashing . | . . . . . . . Piercing . | . . . . . . . Highest Corruption . | . . . . . . . Average Corruption . | . . . . . . . Corruption Purged . | . . . . . . . Overload Shots . | . . . . . . . Overflow Damage . | . . . . . . . Projectiles . | . . . . . . . Explosions . | . . . . . . . Melee . | . . . . . . . Knockbacks . | . . . . . . . Impact . | . . . . . . . Kinetic . | . . . . . . . Secondary . | . . . . . . . Self-Inflicted Damage 36 | . . . . . 36 . Shots 1 | . . . . . 1 . Rammed 6 | . . . . . 2 4 Targets Rammed 8 | . . . . . 3 5 Kicked . | . . . . . . . Crushed 2 | . . . . . 1 1 Highest Temperature 469 | . . 78 431 285 469 . Average Temperature 128 | . . 40 146 123 117 . Received Heat Transfer 525 | . . 12 . 36 387 90 Effects 14 | . . . 5 1 8 . Shutdowns 3 | . . . 2 . 1 . Energy Bleed 3 | . . . 2 . 1 . Interference 7 | . . . . 1 6 . Damage (minor) 1 | . . . 1 . . . Siege Activations . | . . . . . . . Robots Corrupted 2 | . . . . . 2 . Combat Hostiles 2 | . . . . . 2 . Parts Fried 4 | . . . . . 4 . Impact Corruptions . | . . . . . . . Robots Melted . | . . . . . . . Combat Hostiles . | . . . . . . . Parts Melted . | . . . . . . . Heat Transferred 2074 | . . 74 1110 481 409 . Parts Sabotaged . | . . . . . . . Parts Stolen . | . . . . . . . Parts Stripped . | . . . . . . . Power Chain Reactions 2 | . . . . . 2 . Missiles Intercepted . | . . . . . . . Alert | -11 -10 -10 -10 -9 -8 -8 ------- Run | Scr Mat Min Exi Min Mat Gar Peak Influence 236 | . 3 150 . 36 236 220 Average Influence 65 | . 2 59 . 25 110 166 Maximum Alert Level 1 | . . . . . 1 1 Low Security (%) 94 | 100 100 100 . 100 84 96 Level 1 5 | . . . . . 15 3 Level 2 . | . . . . . . . Level 3 . | . . . . . . . Level 4 . | . . . . . . . Level 5 . | . . . . . . . High Security . | . . . . . . . Max Security . | . . . . . . . Squads Dispatched 4 | . . 1 . . 3 . Investigation 2 | . . 1 . . 1 . Extermination . | . . . . . . . Reinforcement 2 | . . . . . 2 . Assault . | . . . . . . . Garrison . | . . . . . . . Intercept . | . . . . . . . Construction Impeded . | . . . . . . . Haulers Reinforced . | . . . . . . . Stealth | -11 -10 -10 -10 -9 -8 -8 --------- Run | Scr Mat Min Exi Min Mat Gar Distress Signals 2 | . . . . 1 1 . Communications Jammed . | . . . . . . . Distress Signals . | . . . . . . . Times Spotted 41 | . 2 6 . 7 20 6 Peak Tracking Total 5 | . 1 2 . 2 4 5 Tactical Retreats 1 | . . . . . 1 . Traps | -11 -10 -10 -10 -9 -8 -8 ------- Run | Scr Mat Min Exi Min Mat Gar Traps Triggered . | . . . . . . . Indirectly . | . . . . . . . Trap Hack Attempts . | . . . . . . . Triggered . | . . . . . . . Disarmed . | . . . . . . . Reprogrammed . | . . . . . . . Reused . | . . . . . . . Traps Extracted . | . . . . . . . Installed . | . . . . . . . Triggered . | . . . . . . . Machines | -11 -10 -10 -10 -9 -8 -8 ---------- Run | Scr Mat Min Exi Min Mat Gar Machines Disabled 1 | . . . . . 1 . Max in Single Turn 1 | . . . . . 1 . Machines Sabotaged . | . . . . . . . Garrisons Compromised . | . . . . . . . Overloaded Fab Kills . | . . . . . . . Fab Network Shutdowns . | . . . . . . . Hacking | -11 -10 -10 -10 -9 -8 -8 --------- Run | Scr Mat Min Exi Min Mat Gar Machines Accessed 9 | . 1 1 4 . 3 . Terminals 3 | . 1 . . . 2 . Fabricators . | . . . . . . . Repair Stations . | . . . . . . . Recycling Units . | . . . . . . . Scanalyzers . | . . . . . . . Garrison Access 1 | . . . . . 1 . Total Hacks 56 | . 2 1 48 . 5 . Successful 53 | . 1 1 48 . 3 . Failed 3 | . 1 . . . 2 . Catastrophic 1 | . . . . . 1 . Database Lockouts . | . . . . . . . Manual 7 | . 2 . 1 . 4 . Terminals 6 | . 2 . . . 4 . Fabricators . | . . . . . . . Repair Stations . | . . . . . . . Recycling Units . | . . . . . . . Scanalyzers . | . . . . . . . Garrison Access 1 | . . . . . 1 . Terminal Hacks 51 | . . 1 48 . 2 . Record 48 | . . . 48 . . . Prototype ID Bank 1 | . . . . . 1 . Open Door 1 | . . 1 . . . . Level Access Points 1 | . . . . . 1 . Fabricator Hacks . | . . . . . . . Repair Station Hacks . | . . . . . . . Recycling Unit Hacks . | . . . . . . . Scanalyzer . | . . . . . . . Garrison Access Hacks 1 | . . . . . 1 . Unlock Access 1 | . . . . . 1 . Unauthorized Hacks 1 | . 1 . . . . . Terminals 1 | . 1 . . . . . Botnet 1 | . 1 . . . . . Fabricators . | . . . . . . . Repair Stations . | . . . . . . . Recycling Units . | . . . . . . . Scanalyzers . | . . . . . . . Garrison Access . | . . . . . . . Data Cores Recovered . | . . . . . . . Used . | . . . . . . . Hacking Detections 3 | . 1 . . . 2 . Full Trace Events 1 | . . . . . 1 . Feedback Events . | . . . . . . . Feedback Blocked . | . . . . . . . Robot Schematics Acquired . | . . . . . . . Robots Built . | . . . . . . . Matter . | . . . . . . . Time . | . . . . . . . Total Robot Build Rating . | . . . . . . . Part Schematics Acquired . | . . . . . . . Parts Built . | . . . . . . . Matter . | . . . . . . . Time . | . . . . . . . Total Part Build Rating . | . . . . . . . Parts Repaired . | . . . . . . . Time . | . . . . . . . Parts Recycled . | . . . . . . . Recycled Matter . | . . . . . . . Retrieved Matter . | . . . . . . . Retrieved Components . | . . . . . . . Parts Scanalyzed . | . . . . . . . Part Schematics Acquired . | . . . . . . . Parts Damaged . | . . . . . . . Bothacking | -11 -10 -10 -10 -9 -8 -8 ------------ Run | Scr Mat Min Exi Min Mat Gar Used RIF Installer . | . . . . . . . Robots Hacked . | . . . . . . . Non-combat . | . . . . . . . Combat . | . . . . . . . Robot Hacks Applied . | . . . . . . . Relay Couplers Released . | . . . . . . . Robots Rewired 3 | . . . 3 . . . Allies Hacked . | . . . . . . . Hacks Repelled . | . . . . . . . Allies | -11 -10 -10 -10 -9 -8 -8 -------- Run | Scr Mat Min Exi Min Mat Gar Total Allies 3 | . . . 3 . . . Largest Group 3 | . . . 3 3 . . Highest-Rated Group 37 | . . . 37 37 . . Highest-Rated Ally 21 | . . . 21 21 . . Total Orders . | . . . . . . . Ally Attacks 19 | . . . . 19 . . Total Damage 235 | . . . . 235 . . Kills 3 | . . . . 3 . . Allies Corrupted . | . . . . . . . Allies Melted . | . . . . . . . Intel | -11 -10 -10 -10 -9 -8 -8 ------- Run | Scr Mat Min Exi Min Mat Gar Robot Analysis Total . | . . . . . . . Derelict Logs Recovered 1 | . . . . 1 . . Drone Launches . | . . . . . . . Drone Recoveries . | . . . . . . . Exploration | -11 -10 -10 -10 -9 -8 -8 ------------- Run | Scr Mat Min Exi Min Mat Gar Turns Passed 4575 | 78 186 455 2696 445 632 83 Spaces Moved 2619 | 63 156 322 1485 240 306 47 Core 13 | 13 . . . . . . Treads 2142 | . . 64 1485 240 306 47 Legs 464 | 50 156 258 . . . . Wheels . | . . . . . . . Hover . | . . . . . . . Flight . | . . . . . . . Fastest Speed 50 | 50 120 120 170 170 157 157 Average Speed 158 | 105 120 129 170 170 157 157 Slowest Speed 170 | 120 120 170 170 170 170 157 Overloaded Moves . | . . . . . . . Propulsion Burnouts . | . . . . . . . Robots Hopped . | . . . . . . . Cave-ins Triggered . | . . . . . . . Exploration Rate (%) 41 | 5 25 62 93 58 24 21 Regions Visited 6 Branch Regions 3 Pre-discovered Areas 1 | . . . 1 . . . Known Exits Taken 6 | 1 1 1 1 1 1 . Unknown Exits Taken . | . . . . . . . Scrap Searched 3 | . . 2 . 1 . . Spaces Dug . | . . . . . . . Terrain Destroyed 9 | . . . . . 9 . Melee . | . . . . . . . Projectile . | . . . . . . . AOE 9 | . . . . . 9 . Actions | -11 -10 -10 -10 -9 -8 -8 --------- Run | Scr Mat Min Exi Min Mat Gar Total 2889 | 74 155 347 1613 258 389 53 Wait 85 | . . 1 68 . 15 1 Move 2614 | 62 155 321 1484 239 306 47 Hop . | . . . . . . . Pick Up 18 | 6 . 5 . 1 6 . Fast Attach . | . . . . . . . Attach 14 | 6 . 3 1 1 3 . Detach . | . . . . . . . Swap 3 | . . . . . 3 . Drop 8 | . . 2 . 1 5 . Fire 115 | . . 15 36 16 48 . Melee . | . . . . . . . Ram . | . . . . . . . Kick . | . . . . . . . Crush 8 | . . . . . 3 5 Escape Stasis . | . . . . . . . Rewire 24 | . . . 24 . . . Trap . | . . . . . . . Miscellaneous . | . . . . . . . Route ------- -11/Scrapyard -10/Materials -10/Mines (discovered 3 exits: *Mat x2 / *Exi) -10/Exiles (discovered 2 exits: *Min x2) -9/Mines -8/Materials (discovered 4 exits: Fac x3 / Gar) -8/Garrison History --------- Turn | Location | Event 10 | -11/Scrapyard | Identified exit to Materials 10 | -11/Scrapyard | Discovered exit to Materials (range 15) 79 | -11/Scrapyard | Entered Materials 79 | -10/Materials | Evolved 1 slot: Power x1 250 | -10/Materials | Identified exit to Mines 250 | -10/Materials | Discovered exit to Mines (range 12) 265 | -10/Materials | Entered Mines 270 | -10/Mines | Met a Derelict bent on vengeance 308 | -10/Mines | Build established: Hacker-Mutant 465 | -10/Mines | Identified exit to Materials 465 | -10/Mines | Discovered exit to Materials (range 8) 547 | -10/Mines | Discovered exit to Materials (range 8) 593 | -10/Mines | Met a Derelict shopkeep closing up shop 708 | -10/Mines | Deemed a non-threat by the Exiles lab entrance 709 | -10/Mines | Identified exit to Exiles 709 | -10/Mines | Discovered exit to Exiles (range 5) 720 | -10/Mines | Entered Exiles 720 | -10/Exiles | Found Exiles lab destroyed 1262 | -10/Exiles | Learned location of Zion (-7) 1676 | -10/Exiles | Identified exit to Mines 1676 | -10/Exiles | Discovered exit to Mines (range 14) 3199 | -10/Exiles | Discovered exit to Mines (range 14) 3416 | -10/Exiles | Entered Mines 3416 | -9/Mines | Accompanied by 3 allies 3446 | -9/Mines | Assembled infested the area 3449 | -9/Mines | Joined a pair of Derelicts in attacking an 0b10 outpost 3451 | -9/Mines | Assisted by a Guerilla fighting off Assembled 3831 | -9/Mines | Identified exit to Materials 3831 | -9/Mines | Discovered exit to Materials (range 9) 3861 | -9/Mines | Entered Materials 3861 | -8/Materials | Evolved 4 slots: Utility x2, Weapon x2 4352 | -8/Materials | Identified exit to Factory 4493 | -8/Materials | Identified exit to Garrison 4493 | -8/Materials | Entered Garrison 4562 | -8/Garrison | Triggered checkpoint 4573 | -8/Garrison | Triggered checkpoint 4576 | -8/Garrison | Self-destructed Last Messages --------------- S-10 Pest unfolds itself. K-01 Serf collects debris. U-05 Engineer lays Concrete. Shock Rifle destroyed. Slammed into G-47 Trooper. Crushed G-47 Trooper. G-47 Trooper destroyed. Nuclear Core destroyed. Connecting with Garrison Access... >>Unlock Access door unlocked. EXIT=UNLOCKED: GARRISON LOCATION=GARRISON GOAL=ESCAPE ALERT: Garrison interior compromised. Beams of light sweep through the air. An alarm sounds. Slammed into G-47 Trooper. Beams of light sweep through the air. An alarm sounds. Crushed G-47 Trooper. G-47 Trooper destroyed. Map ----- +----------------------------------------------------+ | ?????????????????????????????????????????????????? | | ?????????????????????????????????????????????????? | | ?????????????????????????????????????????????????? | | ?????????????????????????????????????????????????? | | ?????????????????????????????????????????????????? | | ?????????????????????????????????????????????????? | | ?????????????????????????????????????????????????? | | ?????????????????????????????????????????????????? | | ???????????????????????? ???????????????????????? | | ???????????????????????# ???????????????????????? | | ???????????????????????# ???????????????????????? | | ???????????????????????# ???????????????????????? | | ???????????????###""??## ##?????????????????????? | | ??????????????? ?? #?????????????????????? | | ??????????????? ?? #?????????????????????? | | ???????????????? ? #?????????????????????? | | ????????????? ???# ?# #?????????????????????? | | ?????????????? ## ## ###???????????????????? | | ???????????????? #???????????????????? | | ????????????" ???? #???????????????????? | | ????????????? ???? ^ ????????????????????? | | ??????????????? ???? ?????????????????????? | | ?????????????????# ???# #?????????????????????? | | ????????????# ## ## gg##########????????????? | | ?????????? %%%% ^ #????????????? | | ?????????? =@[ ^ #????????????? | | ?????????? gg %= ####### #????????????? | | ???????????####### g ## ##?????# #????????????? | | ?????????????????# ??# #??????# #????????????? | | ?????????????????###???# #??????# #????????????? | | ???????????????????????# #??????# #????????????? | | ???????????????????????# #??????# #????????????? | | ???????????????????????# #??????# #????????????? | | ???????????????????????# #??????# #????????????? | | ???????????????????????# ######## ############## | | ???????????????????????# # | | ???????????????????????# # | | ???????????????????????########### ########### # | | ?????????????????????????????????# #?????????# # | | ?????????????????????????????????# #?????????# # | | ?????????????????????????????????" "?????????# # | | ?????????????????????????????????" "?????????# # | | ?????????????????????????????????" ^"?????????# # | | ?????????????????????????????????# #?????????# | | ?????????????????????????????????# #?????????# | | ?????????????????????????????????# #?????????# | | ?????????????????????????????????# #?????????#### | | ?????????????????????????????????# #????????????? | | ?????????????????????????????????? ?????????????? | | ??????????????????????????????????##?????????????? | +----------------------------------------------------+ Best States ------------- Heat Dissipation 31 Energy Generation 23 Energy Capacity 720 Matter Stores 300 Matter Capacity 300 Sight Range 16 Terrain Scan Density 10 Resistance: KI 35 Resistance: TH 35 Resistance: EX 35 Resistance: EM 35 Resistance: I 35 Resistance: S 35 Resistance: P 35 Evasion (%) 50 Targeting Accuracy 10 Recoil Reduction 2 Offensive Hacking 20 Item Schematics ----------------- None Robot Schematics ------------------ None Fabricated ------------ Nothing Alien Tech Used ----------------- None Achievements -------------- None Challenges ------------ None Game ------ Seed InsulationLargeScanner Manual? 0 Play Time 00:25:21 Cumulative 30.9 hours Start 2020.05.31 @ 12:54:47 End 2020.05.31 @ 17:26:04 Sessions 3 Manual Loads 0 Difficulty Explorer Special Mode None Game No. 28 Rogue 0 Adventurer 0 Explorer 28 Win Type - Total 1 Types 1/0/0/0/0/0/0 Lore% 43 Gallery% 46 Achievement% 40 Wizard Run 0 Options --------- ASCII 0 Keyboard 0 Movement Arrows Keybinds 0 Fullscreen 1 Font 18/SmallcapsGlow Map View 76x50 Tactical HUD 0 Map Filters NONE Filters NONE Steam 1 RUN: 34da78e0-82ee-4056-83c9-13aa97bffe42